fUSD/lending_fUSD_20240423
["ID","MTS","AMOUNT","RATE_DAILY","PERIOD"]
[323246705,1713843039765,-500.0,0.00012589,2]
[323246706,1713843039775,-501.15937839,0.00012589,2]
[323246707,1713843039784,-500.0,0.00012589,2]
[323246708,1713843039793,-500.0,0.00012589,2]
[323246710,1713843039803,-500.0,0.00012589,2]
[323246712,1713843039816,-500.0,0.00012589,2]
[323246713,1713843039825,-1176.31,0.00012589,2]
[323246715,1713843039834,-500.0,0.00012589,2]
[323246716,1713843039843,-500.0,0.00012589,2]
[323246717,1713843039852,-500.0,0.00012589,2]
[323246718,1713843039862,-508.48167479,0.00012589,2]
[323246719,1713843039871,-500.0,0.00012589,2]
[323246720,1713843039881,-500.0,0.00012589,2]
[323246721,1713843039891,-500.0,0.00012589,2]
[323246722,1713843039902,-362.94490456,0.00012589,2]
[323246723,1713843039912,-55124.42,0.00012589,2]
[323246724,1713843039921,-500.0,0.00012589,2]
[323246725,1713843039930,-500.0,0.00012589,2]
[323246726,1713843039940,-500.0,0.00012589,2]
[323246727,1713843039949,-5242.71,0.00012589,2]
[323246728,1713843039958,-67402.66,0.00012589,2]
[323246729,1713843039967,-529.22907206,0.00012589,2]
[323246730,1713843039978,-500.0,0.00012589,2]
[323246731,1713843039987,-506.88844948,0.00012589,2]
[323246732,1713843039996,-500.0,0.00012589,2]
[323246733,1713843040005,-500.0,0.00012589,2]
[323246734,1713843040014,-500.0,0.00012589,2]
[323246735,1713843040024,-500.0,0.00012589,2]
[323246736,1713843040033,-503.79223393,0.00012589,2]
[323246737,1713843040042,-500.0,0.00012589,2]
[323246738,1713843040052,-500.0,0.00012589,2]
[323246739,1713843040061,-500.0,0.00012589,2]
[323246740,1713843040070,-500.0,0.00012589,2]
[323246741,1713843040079,-500.0,0.00012589,2]
[323246742,1713843040087,-500.0,0.00012589,2]
[323246743,1713843040096,-892.79,0.00012589,2]
[323246744,1713843040105,-500.0,0.00012589,2]
[323246745,1713843040114,-500.51401044,0.00012589,2]
[323246746,1713843040123,-500.0,0.00012589,2]
[323246747,1713843040132,-500.0,0.00012589,2]
[323246748,1713843040141,-3528.81,0.00012589,2]
[323246749,1713843040152,-500.0,0.00012589,2]
[323246750,1713843040162,-500.0,0.00012589,2]
[323246751,1713843040171,-500.0,0.00012589,2]
[323246752,1713843040180,-500.0,0.00012589,2]
[323246753,1713843040189,-500.0,0.00012589,2]
[323246754,1713843040199,-540.29,0.00012589,2]
[323246755,1713843040208,-500.0,0.00012589,2]
[323246756,1713843040217,-500.0,0.00012589,2]
[323246757,1713843040227,-500.0,0.00012589,2]
[323246758,1713843040235,-500.0,0.00012589,2]
[323246760,1713843040245,-1022.46,0.00012589,2]
[323246761,1713843040254,-500.0,0.00012589,2]
[323246762,1713843040263,-500.0,0.00012589,2]
[323246763,1713843040273,-500.0,0.00012589,2]
[323246764,1713843040282,-500.0,0.00012589,2]
[323246765,1713843040291,-992.42,0.00012589,2]
[323246766,1713843040300,-1603.96,0.00012589,2]
[323246767,1713843040309,-500.0,0.00012589,2]
[323246768,1713843040319,-4271.28,0.00012589,2]
[323246769,1713843040328,-2734.9,0.00012589,2]
[323246770,1713843040338,-500.0,0.00012589,2]
[323246771,1713843040347,-500.0,0.00012589,2]
[323246772,1713843040356,-1652.96,0.00012589,2]
[323246773,1713843040366,-500.0,0.00012589,2]
[323246774,1713843040375,-500.0,0.00012589,2]
[323246775,1713843040383,-500.0,0.00012589,2]
[323246776,1713843040393,-584.29,0.00012589,2]
[323246777,1713843040403,-208.38556251,0.00012589,2]
[323246778,1713843040413,-500.0,0.00012589,2]
[323246779,1713843040422,-500.0,0.00012589,2]
[323246780,1713843040431,-621.16623162,0.00012589,2]
[323246781,1713843040441,-286.61724969,0.00012589,2]
[323246782,1713843040450,-7048.42,0.00012589,2]
[323246783,1713843040459,-7048.42,0.00012589,2]
[323246784,1713843040468,-500.0,0.00012589,2]
[323246785,1713843040477,-7048.42,0.00012589,2]
[323246786,1713843040487,-7048.42,0.00012589,2]
[323246787,1713843040496,-500.0,0.00012589,2]
[323246788,1713843040506,-7048.42,0.00012589,2]
[323246789,1713843040515,-7048.42,0.00012589,2]
[323246790,1713843040524,-7048.42,0.00012589,2]
[323246791,1713843040534,-500.0,0.00012589,2]
[323246792,1713843040543,-7048.42,0.00012589,2]
[323246793,1713843040553,-7048.42,0.00012589,2]
[323246794,1713843040562,-7048.42,0.00012589,2]
[323246795,1713843040571,-7048.42,0.00012589,2]
[323246796,1713843040580,-7048.42,0.00012589,2]
[323246797,1713843040590,-7048.42,0.00012589,2]
[323246798,1713843040599,-7048.42,0.00012589,2]
[323246799,1713843040609,-7048.42,0.00012589,2]
[323246800,1713843040618,-7048.42,0.00012589,2]
[323246801,1713843040627,-7048.42,0.00012589,2]
[323246802,1713843040636,-7048.42,0.00012589,2]
[323246803,1713843040646,-7048.42,0.00012589,2]
[323246804,1713843040656,-7048.42,0.00012589,2]
[323246805,1713843040665,-7048.42,0.00012589,2]
[323246806,1713843040674,-500.0,0.00012589,2]
[323246807,1713843040684,-7048.42,0.00012589,2]
[323246808,1713843040693,-7048.42,0.00012589,2]
[323246809,1713843040703,-469.20444215,0.00012589,2]
[323246810,1713843040712,-7048.49790696,0.00012589,2]
[323246811,1713843040722,-523.32,0.00012589,2]
[323246812,1713843040731,-8239.89,0.00012589,2]
[323246813,1713843040741,-500.0,0.00012589,2]
[323246814,1713843040750,-873.03,0.00012589,2]
[323246815,1713843040759,-500.0,0.00012589,2]
[323246816,1713843040768,-500.0,0.00012589,2]
[323246817,1713843040778,-514.40268982,0.00012589,2]
[323246818,1713843040788,-500.0,0.00012589,2]
[323246819,1713843040797,-500.0,0.00012589,2]
[323246820,1713843040808,-500.27092677,0.00012589,2]
[323246821,1713843040820,-966.67,0.00012589,2]
[323246822,1713843040829,-500.0,0.00012589,2]
[323246823,1713843040839,-762.19,0.00012589,2]
[323246824,1713843040850,-500.0,0.00012589,2]
[323246825,1713843040860,-500.0,0.00012589,2]
[323246826,1713843040869,-500.0,0.00012589,2]
[323246827,1713843040879,-500.0,0.00012589,2]
[323246828,1713843040889,-500.0,0.00012589,2]
[323246829,1713843040902,-500.0,0.00012589,2]
[323246830,1713843040912,-500.0,0.00012589,2]
[323246831,1713843040921,-500.0,0.00012589,2]
[323246832,1713843040931,-500.0,0.00012589,2]
[323246833,1713843040940,-500.0,0.00012589,2]
[323246834,1713843040950,-500.0,0.00012589,2]
[323246835,1713843040960,-773.96,0.00012589,2]
[323246836,1713843040970,-500.0,0.00012589,2]
[323246837,1713843040979,-500.0,0.00012589,2]
[323246838,1713843040988,-500.0,0.00012589,2]
[323246839,1713843040998,-506.365368,0.00012589,2]
[323246840,1713843041008,-794.09,0.00012589,2]
[323246841,1713843041016,-500.0,0.00012589,2]
[323246842,1713843041028,-635.34,0.00012589,2]
[323246843,1713843041037,-504.35759875,0.00012589,2]
[323246844,1713843041047,-500.0,0.00012589,2]
[323246845,1713843041056,-500.0,0.00012589,2]
[323246846,1713843041065,-501.17833952,0.00012589,2]
[323246847,1713843041074,-500.0,0.00012589,2]
[323246848,1713843041084,-536.03,0.00012589,2]
[323246849,1713843041093,-500.0,0.00012589,2]
[323246850,1713843041103,-500.0,0.00012589,2]
[323246851,1713843041112,-4473.36,0.00012589,2]
[323246852,1713843041329,-2330.11,0.00012589,2]
[323246853,1713843041340,-5653.5,0.00012589,2]
[323246854,1713843041350,-648.4697,0.00012589,2]
[323246855,1713843041359,-500.0,0.00012589,2]
[323246856,1713843041368,-500.0,0.00012589,2]
[323246857,1713843041377,-500.0,0.00012589,2]
[323246858,1713843041387,-500.0,0.00012589,2]
[323246859,1713843041396,-500.0,0.00012589,2]
[323246860,1713843041406,-500.0,0.00012589,2]
[323246861,1713843041415,-576.94102538,0.00012589,2]
[323246862,1713843041424,-985.18,0.00012589,2]
[323246863,1713843041433,-1430.76,0.00012589,2]
[323246864,1713843041443,-500.0,0.00012589,2]
[323246865,1713843041452,-501.50594883,0.00012589,2]
[323246866,1713843041462,-500.0,0.00012589,2]
[323246867,1713843041471,-501.63898812,0.00012589,2]
[323246868,1713843041480,-501.80297236,0.00012589,2]
[323246869,1713843041489,-611.06,0.00012589,2]
[323246870,1713843041498,-500.0,0.00012589,2]
[323246871,1713843041507,-500.0,0.00012589,2]
[323246872,1713843041517,-3385.02,0.00012589,2]
[323246873,1713843041526,-500.0,0.00012589,2]
[323246874,1713843041535,-500.0,0.00012589,2]
[323246875,1713843041544,-500.0,0.00012589,2]
[323246876,1713843041554,-500.0,0.00012589,2]
[323246877,1713843041563,-500.0,0.00012589,2]
[323246878,1713843041572,-500.0,0.00012589,2]
[323246879,1713843041582,-500.0,0.00012589,2]
[323246880,1713843041591,-500.0,0.00012589,2]
[323246881,1713843041601,-500.0,0.00012589,2]
[323246882,1713843041610,-500.0,0.00012589,2]
[323246883,1713843041619,-500.0,0.00012589,2]
[323246884,1713843041629,-500.0,0.00012589,2]
[323246885,1713843041638,-550.75,0.00012589,2]
[323246886,1713843041649,-500.0,0.00012589,2]
[323246887,1713843041659,-500.0,0.00012589,2]
[323246888,1713843041668,-604.24,0.00012589,2]
[323246889,1713843041678,-13089.97,0.00012589,2]
[323246890,1713843041687,-470.62634316,0.00012589,2]
[323246891,1713843041697,-2879.78,0.00012589,2]
[323246892,1713843041707,-500.0,0.00012589,2]
[323246893,1713843041717,-500.0,0.00012589,2]
[323246894,1713843041726,-500.0,0.00012589,2]
[323246895,1713843041735,-508.88652378,0.00012589,2]
[323246896,1713843041745,-630.2870695,0.00012589,2]
[323246897,1713843041754,-500.0,0.00012589,2]
[323246898,1713843041763,-643.38,0.00012589,2]
[323246899,1713843041774,-502.31624159,0.00012589,2]
[323246900,1713843041783,-503.05136092,0.00012589,2]
[323246901,1713843041793,-1023.87,0.00012589,2]
[323246902,1713843041803,-503.99561726,0.00012589,2]
[323246903,1713843041815,-500.0,0.00012589,2]
[323246904,1713843041825,-500.0,0.00012589,2]
[323246905,1713843041834,-500.0,0.00012589,2]
[323246906,1713843041843,-458.01443399,0.00012589,2]
[323246907,1713843041854,-500.0,0.00012589,2]
[323246908,1713843041863,-1507.08,0.00012589,2]
[323246909,1713843041874,-369.34738943,0.00012589,2]
[323246910,1713843041885,-500.0,0.00012589,2]
[323246911,1713843041894,-500.0,0.00012589,2]
[323246912,1713843041905,-500.0,0.00012589,2]
[323246913,1713843041915,-12359.64,0.00012589,2]
[323246914,1713843041924,-500.0,0.00012589,2]
[323246915,1713843041934,-500.0,0.00012589,2]
[323246916,1713843041944,-501.11205328,0.00012589,2]
[323246917,1713843041955,-543.64344196,0.00012589,2]
[323246918,1713843041964,-500.0,0.00012589,2]
[323246919,1713843041973,-1082.39,0.00012589,2]
[323246920,1713843041985,-501.59399651,0.00012589,2]
[323246921,1713843041996,-500.0,0.00012589,2]
[323246922,1713843042007,-500.0,0.00012589,2]
[323246923,1713843042018,-1800.85,0.00012589,2]
[323246924,1713843042030,-500.0,0.00012589,2]
[323246925,1713843042043,-500.0,0.00012589,2]
[323246926,1713843042055,-667.27,0.00012589,2]
[323246927,1713843042068,-32114.07,0.00012589,2]
[323246928,1713843042079,-500.0,0.00012589,2]
[323246929,1713843042091,-500.0,0.00012589,2]
[323246930,1713843042103,-500.0,0.00012589,2]
[323246931,1713843042116,-500.0,0.00012589,2]
[323246932,1713843042126,-500.0,0.00012589,2]
[323246933,1713843042138,-500.0,0.00012589,2]
[323246934,1713843042151,-281.26573708,0.00012589,2]
[323246935,1713843042162,-1049.61,0.00012589,2]
[323246936,1713843042173,-500.0,0.00012589,2]
[323246937,1713843042183,-500.0,0.00012589,2]
[323246938,1713843042193,-500.0,0.00012589,2]
[323246939,1713843042204,-217.47374801,0.0001259,2]
[323246940,1713843042214,-698.93933076,0.0001259,2]
[323246941,1713843042227,-195.35432661,0.0001259,2]
[323246942,1713843042237,-1768.78496039,0.0001259,2]
[323246943,1713843042250,-184047.48579524,0.0001259,2]
[323246948,1713843042687,-3952.21689797,0.0001259,2]
[323246949,1713843042699,-67723.85843232,0.0001259,2]
[323246950,1713843042746,-43547.07620316,0.0001259,2]
[323246954,1713843043261,-500.0,0.00012479,2]
[323246955,1713843043271,-1499.0,0.0001259,2]
[323246956,1713843043291,-132839.93974661,0.0001259,2]
[323246957,1713843043301,-500.0,0.0001259,2]
[323246958,1713843043311,-2169.26368415,0.00012591,2]
[323246959,1713843043321,-746.65,0.00012591,2]
[323246960,1713843043330,-640.45,0.00012591,2]
[323246961,1713843043340,-502.41805481,0.00012591,2]
[323246962,1713843043351,-500.0,0.00012591,2]
[323246963,1713843043361,-503.46986221,0.00012591,2]
[323246964,1713843043372,-500.0,0.00012591,2]
[323246965,1713843043382,-515.08,0.00012591,2]
[323246966,1713843043392,-216.5295986,0.00012591,2]
[323246967,1713843043402,-1283.77,0.00012591,2]
[323246968,1713843043411,-598.99474594,0.00012591,2]
[323246969,1713843043422,-500.0,0.00012591,2]
[323246971,1713843043432,-500.0,0.00012591,2]
[323246973,1713843043441,-500.0,0.00012591,2]
[323246975,1713843043450,-500.0,0.00012591,2]
[323246977,1713843043460,-500.0,0.00012591,2]
[323246979,1713843043469,-500.0,0.00012591,2]
[323246981,1713843043478,-622.68386407,0.00012591,2]
[323246983,1713843043487,-500.0,0.00012591,2]
[323246985,1713843043496,-500.0,0.00012591,2]
[323246987,1713843043505,-500.0,0.00012591,2]
[323246989,1713843043514,-1296.24,0.00012591,2]
[323246991,1713843043523,-504.33799623,0.00012591,2]
[323246993,1713843043532,-500.0,0.00012591,2]
[323246995,1713843043541,-631.62,0.00012591,2]
[323246997,1713843043551,-500.0,0.00012591,2]
[323246998,1713843043560,-500.0,0.00012591,2]
[323246999,1713843043569,-500.0,0.00012591,2]
[323247000,1713843043579,-500.0,0.00012591,2]
[323247001,1713843043589,-500.0,0.00012591,2]
[323247002,1713843043599,-500.0,0.00012591,2]
[323247003,1713843043609,-500.0,0.00012591,2]
[323247004,1713843043620,-500.0,0.00012591,2]
[323247005,1713843043630,-500.0,0.00012591,2]
[323247006,1713843043641,-500.0,0.00012591,2]
[323247007,1713843043652,-500.0,0.00012591,2]
[323247008,1713843043662,-500.0,0.00012591,2]
[323247009,1713843043673,-500.0,0.00012591,2]
[323247010,1713843043685,-500.0,0.00012591,2]
[323247011,1713843043696,-500.0,0.00012591,2]
[323247012,1713843043706,-564.20702015,0.00012591,2]
[323247013,1713843043716,-500.0,0.00012591,2]
[323247014,1713843043726,-500.0,0.00012591,2]
[323247015,1713843043737,-500.0,0.00012591,2]
[323247016,1713843043747,-500.0,0.00012591,2]
[323247017,1713843043758,-500.0,0.00012591,2]
[323247018,1713843043769,-500.0,0.00012591,2]
[323247019,1713843043780,-500.0,0.00012591,2]
[323247020,1713843043791,-1619.02,0.00012591,2]
[323247021,1713843043801,-500.0,0.00012591,2]
[323247022,1713843043812,-505.36441468,0.00012591,2]
[323247023,1713843043823,-500.0,0.00012591,2]
[323247024,1713843043834,-1651.26,0.00012591,2]
[323247025,1713843043844,-500.0,0.00012591,2]
[323247026,1713843043854,-500.0,0.00012591,2]
[323247027,1713843043864,-500.0,0.00012591,2]
[323247028,1713843043874,-502.70060637,0.00012591,2]
[323247029,1713843043883,-500.0,0.00012591,2]
[323247030,1713843043893,-500.0,0.00012591,2]
[323247031,1713843043905,-616.13225726,0.00012591,2]
[323247032,1713843043914,-500.0,0.00012591,2]
[323247033,1713843043924,-501.35704252,0.00012591,2]
[323247034,1713843043933,-500.0,0.00012591,2]
[323247035,1713843043942,-500.0,0.00012591,2]
[323247036,1713843043952,-500.0,0.00012591,2]
[323247037,1713843043962,-500.0,0.00012591,2]
[323247038,1713843043972,-500.0,0.00012591,2]
[323247039,1713843043982,-500.0,0.00012591,2]
[323247040,1713843043992,-500.0,0.00012591,2]
[323247041,1713843044001,-1298.26,0.00012591,2]
[323247042,1713843044012,-500.0,0.00012591,2]
[323247043,1713843044022,-500.0,0.00012591,2]
[323247044,1713843044031,-500.0,0.00012591,2]
[323247045,1713843044041,-744.24,0.00012591,2]
[323247046,1713843044051,-500.0,0.00012591,2]
[323247047,1713843044061,-500.0,0.00012591,2]
[323247048,1713843044071,-500.0,0.00012591,2]
[323247049,1713843044082,-500.0,0.00012591,2]
[323247050,1713843044092,-501.484928,0.00012591,2]
[323247051,1713843044102,-501.48456777,0.00012591,2]
[323247052,1713843044112,-500.0,0.00012591,2]
[323247053,1713843044123,-508.03466313,0.00012591,2]
[323247054,1713843044132,-500.0,0.00012591,2]
[323247055,1713843044142,-497.59870471,0.00012591,2]
[323247056,1713843044154,-500.0,0.00012591,2]
[323247057,1713843044164,-500.0,0.00012591,2]
[323247058,1713843044174,-503.62999658,0.00012591,2]
[323247059,1713843044184,-500.0,0.00012591,2]
[323247060,1713843044194,-500.0,0.00012591,2]
[323247061,1713843044203,-500.0,0.00012591,2]
[323247062,1713843044214,-500.0,0.00012591,2]
[323247063,1713843044223,-505.53049312,0.00012591,2]
[323247064,1713843044233,-500.0,0.00012591,2]
[323247065,1713843044243,-500.0,0.00012591,2]
[323247066,1713843044253,-500.0,0.00012591,2]
[323247067,1713843044263,-500.0,0.00012591,2]
[323247068,1713843044274,-909.1,0.00012591,2]
[323247069,1713843044284,-500.0,0.00012591,2]
[323247070,1713843044295,-500.0,0.00012591,2]
[323247071,1713843044306,-509.32518161,0.00012591,2]
[323247072,1713843044315,-503.32500695,0.00012591,2]
[323247073,1713843044324,-500.0,0.00012591,2]
[323247074,1713843044335,-500.0,0.00012591,2]
[323247075,1713843044345,-500.0,0.00012591,2]
[323247076,1713843044355,-500.0,0.00012591,2]
[323247077,1713843044366,-509.30839103,0.00012591,2]
[323247078,1713843044377,-500.0,0.00012591,2]
[323247079,1713843044389,-500.0,0.00012591,2]
[323247080,1713843044399,-1358.39,0.00012591,2]
[323247081,1713843044410,-493.24794868,0.00012591,2]
[323247082,1713843044421,-500.0,0.00012591,2]
[323247083,1713843044431,-500.0,0.00012591,2]
[323247084,1713843044441,-500.0,0.00012591,2]
[323247085,1713843044452,-150.0,0.00012591,2]
[323247086,1713843044462,-500.0,0.00012591,2]
[323247087,1713843044698,-500.0,0.00012591,2]
[323247088,1713843044711,-505.20494871,0.00012591,2]
[323247089,1713843044722,-505.79005798,0.00012591,2]
[323247090,1713843044731,-629.62,0.00012591,2]
[323247091,1713843044742,-502.06585337,0.00012591,2]
[323247092,1713843044753,-617.04281046,0.00012591,2]
[323247093,1713843044762,-500.0,0.00012591,2]
[323247094,1713843044772,-500.0,0.00012591,2]
[323247095,1713843044782,-502.65487298,0.00012591,2]
[323247096,1713843044792,-1636.87,0.00012591,2]
[323247097,1713843044803,-500.0,0.00012591,2]
[323247098,1713843044819,-500.0,0.00012591,2]
[323247099,1713843044830,-500.0,0.00012591,2]
[323247100,1713843044841,-518.400705,0.00012591,2]
[323247101,1713843044854,-520.34563087,0.00012591,2]
[323247102,1713843044867,-621.57518901,0.00012591,2]
[323247103,1713843044878,-500.69,0.00012591,2]
[323247104,1713843044889,-560.06975489,0.00012591,2]
[323247105,1713843044901,-546.24231813,0.00012591,2]
[323247106,1713843044911,-506.05011055,0.00012591,2]
[323247107,1713843044921,-500.0,0.00012591,2]
[323247108,1713843044931,-500.0,0.00012591,2]
[323247109,1713843044940,-501.37687305,0.00012591,2]
[323247110,1713843044950,-183.8793816,0.00012591,2]
[323247111,1713843044960,-502.61630787,0.00012591,2]
[323247112,1713843044970,-500.0,0.00012591,2]
[323247113,1713843044979,-1267.27,0.00012591,2]
[323247114,1713843044989,-500.0,0.00012591,2]
[323247115,1713843044998,-500.0,0.00012591,2]
[323247116,1713843045008,-503.86802354,0.00012591,2]
[323247117,1713843045018,-507.63833352,0.00012591,2]
[323247118,1713843045028,-500.0,0.00012591,2]
[323247119,1713843045037,-500.0,0.00012591,2]
[323247120,1713843045046,-500.0,0.00012591,2]
[323247121,1713843045056,-500.0,0.00012591,2]
[323247122,1713843045065,-501.4896916,0.00012591,2]
[323247123,1713843045075,-507.20114667,0.00012591,2]
[323247124,1713843045084,-500.0,0.00012591,2]
[323247125,1713843045093,-173.21673514,0.00012591,2]
[323247126,1713843045102,-500.0,0.00012591,2]
[323247127,1713843045111,-500.0,0.00012591,2]
[323247128,1713843045120,-500.0,0.00012591,2]
[323247129,1713843045130,-500.0,0.00012591,2]
[323247130,1713843045139,-500.0,0.00012591,2]
[323247131,1713843045147,-500.0,0.00012591,2]
[323247132,1713843045162,-504.03954661,0.00012591,2]
[323247133,1713843045171,-500.0,0.00012591,2]
[323247134,1713843045180,-1454.06,0.00012591,2]
[323247135,1713843045189,-500.0,0.00012591,2]
[323247136,1713843045199,-500.0,0.00012591,2]
[323247137,1713843045208,-500.0,0.00012591,2]
[323247138,1713843045217,-500.0,0.00012591,2]
[323247139,1713843045226,-1291.74,0.00012591,2]
[323247140,1713843045235,-558.51,0.00012591,2]
[323247141,1713843045244,-500.0,0.00012591,2]
[323247142,1713843045253,-500.0,0.00012591,2]
[323247143,1713843045262,-500.0,0.00012591,2]
[323247144,1713843045271,-495.08679186,0.00012591,2]
[323247145,1713843045280,-500.0,0.00012591,2]
[323247146,1713843045289,-500.0,0.00012591,2]
[323247147,1713843045298,-500.0,0.00012591,2]
[323247148,1713843045307,-500.0,0.00012591,2]
[323247149,1713843045316,-500.0,0.00012591,2]
[323247150,1713843045325,-502.98511475,0.00012591,2]
[323247151,1713843045334,-530.61331591,0.00012591,2]
[323247152,1713843045343,-500.0,0.00012591,2]
[323247153,1713843045352,-500.0,0.00012591,2]
[323247154,1713843045361,-500.0,0.00012591,2]
[323247155,1713843045370,-500.0,0.00012591,2]
[323247156,1713843045379,-500.0,0.00012591,2]
[323247157,1713843045388,-500.0,0.00012591,2]
[323247158,1713843045399,-615.22,0.00012591,2]
[323247159,1713843045408,-500.0,0.00012591,2]
[323247160,1713843045417,-500.0,0.00012591,2]
[323247161,1713843045426,-504.72592533,0.00012591,2]
[323247162,1713843045435,-500.0,0.00012591,2]
[323247163,1713843045444,-500.0,0.00012591,2]
[323247164,1713843045454,-500.0,0.00012591,2]
[323247165,1713843045464,-500.0,0.00012591,2]
[323247166,1713843045475,-500.0,0.00012591,2]
[323247167,1713843045485,-500.0,0.00012591,2]
[323247168,1713843045495,-591.89613177,0.00012591,2]
[323247169,1713843045504,-2537.77,0.00012591,2]
[323247170,1713843045514,-500.0,0.00012591,2]
[323247171,1713843045523,-500.0,0.00012591,2]
[323247172,1713843045532,-500.0,0.00012591,2]
[323247173,1713843045541,-593.93997486,0.00012591,2]
[323247174,1713843045550,-505.43659959,0.00012591,2]
[323247176,1713843045561,-500.0,0.00012591,2]
[323247177,1713843045571,-574.67911366,0.00012591,2]
[323247178,1713843045581,-500.0,0.00012591,2]
[323247179,1713843045591,-1667.61,0.00012591,2]
[323247180,1713843045600,-500.0,0.00012591,2]
[323247182,1713843045609,-510.72997811,0.00012591,2]
[323247183,1713843045620,-500.0,0.00012591,2]
[323247184,1713843045630,-501.02412268,0.00012591,2]
[323247185,1713843045639,-500.0,0.00012591,2]
[323247186,1713843045650,-505.37549566,0.00012591,2]
[323247187,1713843045659,-500.0,0.00012591,2]
[323247188,1713843045669,-500.0,0.00012591,2]
[323247189,1713843045678,-618.2960579,0.00012591,2]
[323247190,1713843045687,-500.0,0.00012591,2]
[323247191,1713843045697,-527.70303605,0.00012591,2]
[323247192,1713843045706,-527.3,0.00012591,2]
[323247193,1713843045716,-500.0,0.00012591,2]
[323247194,1713843045725,-500.0,0.00012591,2]
[323247195,1713843045735,-500.0,0.00012591,2]
[323247196,1713843045744,-507.78838382,0.00012591,2]
[323247197,1713843045754,-576.61539445,0.00012591,2]
[323247198,1713843045763,-1440.7,0.00012591,2]
[323247199,1713843045772,-500.0,0.00012591,2]
[323247200,1713843045782,-500.0,0.00012591,2]
[323247201,1713843045791,-3050.47,0.00012591,2]
[323247202,1713843045800,-834.19,0.00012591,2]
[323247203,1713843045810,-505.31069842,0.00012591,2]
[323247204,1713843045822,-502.7454891,0.00012591,2]
[323247205,1713843045832,-504.93008995,0.00012591,2]
[323247206,1713843045841,-584.56473952,0.00012591,2]
[323247207,1713843045850,-1025.9,0.00012591,2]
[323247208,1713843045859,-500.0,0.00012591,2]
[323247209,1713843045868,-560.56667036,0.00012591,2]
[323247210,1713843045877,-500.0,0.00012591,2]
[323247211,1713843045887,-500.0,0.00012591,2]
[323247213,1713843045897,-500.0,0.00012591,2]
[323247215,1713843045909,-1542.1,0.00012591,2]
[323247217,1713843045918,-500.0,0.00012591,2]
[323247219,1713843045928,-529.8351165,0.00012591,2]
[323247221,1713843045937,-666.64,0.00012591,2]
[323247223,1713843045947,-500.0,0.00012591,2]
[323247224,1713843045956,-501.19501089,0.00012591,2]
[323247225,1713843045965,-504.59655422,0.00012591,2]
[323247226,1713843045976,-500.0,0.00012591,2]
[323247227,1713843045986,-500.0,0.00012591,2]
[323247228,1713843045995,-507.22208482,0.00012591,2]
[323247229,1713843046004,-502.77,0.00012591,2]
[323247230,1713843046013,-502.07854319,0.00012591,2]
[323247231,1713843046023,-505.09208141,0.00012591,2]
[323247232,1713843046032,-500.0,0.00012591,2]
[323247233,1713843046041,-500.0,0.00012591,2]
[323247234,1713843046050,-505.17732977,0.00012591,2]
[323247235,1713843046060,-504.20872907,0.00012591,2]
[323247236,1713843046069,-1213.46,0.00012591,2]
[323247237,1713843046079,-500.0,0.00012591,2]